fUST/lending_fUST_20260520
["ID","MTS","AMOUNT","RATE_DAILY","PERIOD"]
[422689403,1779249042000,-685.03,8.219e-05,2]
[422689409,1779249042000,-500.43911756,8.219e-05,2]
[422689406,1779249042000,-2103.07,8.219e-05,2]
[422689414,1779249042000,-500.0,8.219e-05,2]
[422689424,1779249042000,-1841.89,8.219e-05,2]
[422689413,1779249042000,-1527.67,8.219e-05,2]
[422689425,1779249042000,-304.82166537,8.219e-05,2]
[422689426,1779249042000,-500.0,8.219e-05,2]
[422689415,1779249042000,-500.0,8.219e-05,2]
[422689416,1779249042000,-2001.85,8.219e-05,2]
[422689420,1779249042000,-500.77092872,8.219e-05,2]
[422689418,1779249042000,-414.32555893,8.219e-05,2]
[422689399,1779249042000,-500.0,8.219e-05,2]
[422689466,1779249042000,-500.0,8.219e-05,2]
[422689519,1779249042000,-500.0,8.219e-05,2]
[422689458,1779249042000,-508.96,8.219e-05,2]
[422689495,1779249042000,-2222.54,8.219e-05,2]
[422689496,1779249042000,-500.0,8.219e-05,2]
[422689497,1779249042000,-500.0,8.219e-05,2]
[422689499,1779249042000,-2168.92,8.219e-05,2]
[422689498,1779249042000,-500.0,8.219e-05,2]
[422689500,1779249042000,-500.0,8.219e-05,2]
[422689503,1779249042000,-500.0,8.219e-05,2]
[422689502,1779249042000,-500.0,8.219e-05,2]
[422689501,1779249042000,-500.70344577,8.219e-05,2]
[422689504,1779249042000,-500.0,8.219e-05,2]
[422689505,1779249042000,-500.0,8.219e-05,2]
[422689507,1779249042000,-500.0,8.219e-05,2]
[422689506,1779249042000,-500.0,8.219e-05,2]
[422689508,1779249042000,-3211.7,8.219e-05,2]
[422689490,1779249042000,-1867.28,8.219e-05,2]
[422689509,1779249042000,-713.95,8.219e-05,2]
[422689510,1779249042000,-500.0,8.219e-05,2]
[422689511,1779249042000,-500.0,8.219e-05,2]
[422689517,1779249042000,-500.0,8.219e-05,2]
[422689516,1779249042000,-500.0,8.219e-05,2]
[422689520,1779249042000,-604.62092907,8.219e-05,2]
[422689521,1779249042000,-587.54,8.219e-05,2]
[422689518,1779249042000,-500.49033117,8.219e-05,2]
[422689514,1779249042000,-1033.44,8.219e-05,2]
[422689512,1779249042000,-500.0,8.219e-05,2]
[422689513,1779249042000,-500.0,8.219e-05,2]
[422689523,1779249042000,-500.0,8.219e-05,2]
[422689524,1779249042000,-500.0,8.219e-05,2]
[422689525,1779249042000,-500.0,8.219e-05,2]
[422689454,1779249042000,-500.0,8.219e-05,2]
[422689515,1779249042000,-500.0,8.219e-05,2]
[422689492,1779249042000,-500.0,8.219e-05,2]
[422689522,1779249042000,-500.0,8.219e-05,2]
[422689487,1779249042000,-500.0,8.219e-05,2]
[422689491,1779249042000,-500.0,8.219e-05,2]
[422689460,1779249042000,-2807.6,8.219e-05,2]
[422689459,1779249042000,-500.0,8.219e-05,2]
[422689464,1779249042000,-500.0,8.219e-05,2]
[422689457,1779249042000,-500.0,8.219e-05,2]
[422689462,1779249042000,-1969.88,8.219e-05,2]
[422689461,1779249042000,-500.0,8.219e-05,2]
[422689463,1779249042000,-500.43876774,8.219e-05,2]
[422689469,1779249042000,-155.73457902,8.219e-05,2]
[422689479,1779249042000,-500.0,8.219e-05,2]
[422689481,1779249042000,-571.28,8.219e-05,2]
[422689480,1779249042000,-500.0,8.219e-05,2]
[422689468,1779249042000,-500.0,8.219e-05,2]
[422689471,1779249042000,-689.22,8.219e-05,2]
[422689470,1779249042000,-500.0,8.219e-05,2]
[422689456,1779249042000,-1292.85,8.219e-05,2]
[422689472,1779249042000,-500.0,8.219e-05,2]
[422689474,1779249042000,-500.0,8.219e-05,2]
[422689485,1779249042000,-5393.86,8.219e-05,2]
[422689489,1779249042000,-2935.75,8.219e-05,2]
[422689482,1779249042000,-1488.27,8.219e-05,2]
[422689486,1779249042000,-500.0,8.219e-05,2]
[422689484,1779249042000,-842.18,8.219e-05,2]
[422689493,1779249042000,-1365.26,8.219e-05,2]
[422689483,1779249042000,-500.0,8.219e-05,2]
[422689476,1779249042000,-500.0,8.219e-05,2]
[422689494,1779249042000,-500.5156537,8.219e-05,2]
[422689477,1779249042000,-500.0,8.219e-05,2]
[422689488,1779249042000,-500.0,8.219e-05,2]
[422689475,1779249042000,-500.0,8.219e-05,2]
[422689473,1779249042000,-500.81756745,8.219e-05,2]
[422689478,1779249042000,-1720.1,8.219e-05,2]
[422689564,1779249043000,-1789.4154,8.493e-05,2]
[422689585,1779249043000,-500.0,8.493e-05,2]
[422689557,1779249043000,-600.0,8.382e-05,2]
[422689568,1779249043000,-501.28,8.493e-05,2]
[422689567,1779249043000,-1657.613,8.493e-05,2]
[422689565,1779249043000,-538.513,8.493e-05,2]
[422689569,1779249043000,-730.93,8.493e-05,2]
[422689570,1779249043000,-500.0,8.493e-05,2]
[422689566,1779249043000,-500.0,8.493e-05,2]
[422689572,1779249043000,-500.0,8.493e-05,2]
[422689582,1779249043000,-516.2,8.493e-05,2]
[422689583,1779249043000,-500.0,8.493e-05,2]
[422689561,1779249043000,-500.0,8.492e-05,2]
[422689576,1779249043000,-500.0,8.493e-05,2]
[422689574,1779249043000,-500.0,8.493e-05,2]
[422689571,1779249043000,-500.0,8.493e-05,2]
[422689578,1779249043000,-500.0,8.493e-05,2]
[422689579,1779249043000,-500.0,8.493e-05,2]
[422689581,1779249043000,-500.0,8.493e-05,2]
[422689580,1779249043000,-514.15,8.493e-05,2]
[422689586,1779249043000,-665.2,8.493e-05,2]
[422689589,1779249043000,-500.0,8.493e-05,2]
[422689587,1779249043000,-500.0,8.493e-05,2]
[422689588,1779249043000,-500.0,8.493e-05,2]
[422689563,1779249043000,-506.57173457,8.492e-05,2]
[422689590,1779249043000,-500.0,8.493e-05,2]
[422689573,1779249043000,-500.0,8.493e-05,2]
[422689560,1779249043000,-500.0,8.492e-05,2]
[422689538,1779249043000,-160.0,8.304e-05,3]
[422689556,1779249043000,-300.0,8.382e-05,2]
[422689593,1779249043000,-500.0,8.493e-05,2]
[422689527,1779249043000,-500.62104037,8.219e-05,2]
[422689535,1779249043000,-150.0,8.3e-05,2]
[422689529,1779249043000,-4908.46,8.219e-05,2]
[422689534,1779249043000,-705.915,8.293e-05,2]
[422689528,1779249043000,-1459.47,8.219e-05,2]
[422689533,1779249043000,-1139.09162923,8.258e-05,2]
[422689530,1779249043000,-500.0,8.219e-05,2]
[422689531,1779249043000,-152.0,8.22e-05,30]
[422689532,1779249043000,-152.0,8.256e-05,30]
[422689537,1779249043000,-1372.051,8.301e-05,2]
[422689545,1779249043000,-300.0,8.382e-05,2]
[422689546,1779249043000,-300.0,8.382e-05,2]
[422689536,1779249043000,-150.0,8.3e-05,2]
[422689541,1779249043000,-300.0,8.382e-05,2]
[422689540,1779249043000,-300.0,8.382e-05,2]
[422689542,1779249043000,-300.0,8.382e-05,2]
[422689539,1779249043000,-1139.09162923,8.304e-05,2]
[422689543,1779249043000,-300.0,8.382e-05,2]
[422689544,1779249043000,-300.0,8.382e-05,2]
[422689548,1779249043000,-300.0,8.382e-05,2]
[422689549,1779249043000,-300.0,8.382e-05,2]
[422689553,1779249043000,-300.0,8.382e-05,2]
[422689550,1779249043000,-300.0,8.382e-05,2]
[422689555,1779249043000,-300.0,8.382e-05,2]
[422689554,1779249043000,-300.0,8.382e-05,2]
[422689551,1779249043000,-300.0,8.382e-05,2]
[422689558,1779249043000,-300.0,8.4e-05,2]
[422689597,1779249043000,-500.0,8.493e-05,2]
[422689592,1779249043000,-500.0,8.493e-05,2]
[422689595,1779249043000,-593.29,8.493e-05,2]
[422689637,1779249043000,-3125.43,8.493e-05,2]
[422689638,1779249043000,-1046.45,8.493e-05,2]
[422689635,1779249043000,-500.0,8.493e-05,2]
[422689633,1779249043000,-522.36,8.493e-05,2]
[422689628,1779249043000,-500.0,8.493e-05,2]
[422689626,1779249043000,-500.0,8.493e-05,2]
[422689629,1779249043000,-500.0,8.493e-05,2]
[422689631,1779249043000,-500.0,8.493e-05,2]
[422689634,1779249043000,-503.24048659,8.493e-05,2]
[422689630,1779249043000,-500.0,8.493e-05,2]
[422689632,1779249043000,-500.0,8.493e-05,2]
[422689636,1779249043000,-502.0892607,8.493e-05,2]
[422689643,1779249043000,-605.35,8.493e-05,2]
[422689641,1779249043000,-545.04,8.493e-05,2]
[422689650,1779249043000,-500.0,8.493e-05,2]
[422689639,1779249043000,-909.59,8.493e-05,2]
[422689644,1779249043000,-500.0,8.493e-05,2]
[422689646,1779249043000,-500.0,8.493e-05,2]
[422689648,1779249043000,-500.0,8.493e-05,2]
[422689649,1779249043000,-1059.8,8.493e-05,2]
[422689645,1779249043000,-582.8,8.493e-05,2]
[422689642,1779249043000,-500.0,8.493e-05,2]
[422689647,1779249043000,-500.0,8.493e-05,2]
[422689652,1779249043000,-500.0,8.493e-05,2]
[422689653,1779249043000,-500.0,8.493e-05,2]
[422689598,1779249043000,-198.09,8.493e-05,2]
[422689651,1779249043000,-467.52085225,8.493e-05,2]
[422689627,1779249043000,-663.08,8.493e-05,2]
[422689621,1779249043000,-500.0,8.493e-05,2]
[422689640,1779249043000,-518.27705374,8.493e-05,2]
[422689619,1779249043000,-1512.21,8.493e-05,2]
[422689596,1779249043000,-500.0,8.493e-05,2]
[422689623,1779249043000,-500.0,8.493e-05,2]
[422689591,1779249043000,-500.0,8.493e-05,2]
[422689594,1779249043000,-500.0,8.493e-05,2]
[422689600,1779249043000,-560.6,8.493e-05,2]
[422689609,1779249043000,-472.05474794,8.493e-05,2]
[422689599,1779249043000,-500.0,8.493e-05,2]
[422689610,1779249043000,-500.0,8.493e-05,2]
[422689603,1779249043000,-500.0,8.493e-05,2]
[422689604,1779249043000,-798.9,8.493e-05,2]
[422689602,1779249043000,-500.0,8.493e-05,2]
[422689608,1779249043000,-500.0,8.493e-05,2]
[422689607,1779249043000,-500.0,8.493e-05,2]
[422689611,1779249043000,-1298.84,8.493e-05,2]
[422689614,1779249043000,-500.0,8.493e-05,2]
[422689625,1779249043000,-500.0,8.493e-05,2]
[422689601,1779249043000,-1000.0,8.493e-05,2]
[422689622,1779249043000,-500.0,8.493e-05,2]
[422689618,1779249043000,-500.0,8.493e-05,2]
[422689620,1779249043000,-500.0,8.493e-05,2]
[422689624,1779249043000,-500.0,8.493e-05,2]
[422689616,1779249043000,-152.32821924,8.493e-05,2]
[422689615,1779249043000,-500.0,8.493e-05,2]
[422689613,1779249043000,-500.0,8.493e-05,2]
[422689606,1779249043000,-500.0,8.493e-05,2]
[422689605,1779249043000,-1325.96,8.493e-05,2]
[422689617,1779249043000,-500.0,8.493e-05,2]
[422689696,1779249044000,-500.0,8.493e-05,2]
[422689704,1779249044000,-500.0,8.493e-05,2]
[422689699,1779249044000,-500.0,8.493e-05,2]
[422689703,1779249044000,-500.0,8.493e-05,2]
[422689698,1779249044000,-500.0,8.493e-05,2]
[422689692,1779249044000,-1376.05,8.493e-05,2]
[422689686,1779249044000,-500.0,8.493e-05,2]
[422689693,1779249044000,-500.0,8.493e-05,2]
[422689689,1779249044000,-500.0,8.493e-05,2]
[422689710,1779249044000,-1048.56,8.493e-05,2]
[422689684,1779249044000,-872.63,8.493e-05,2]
[422689697,1779249044000,-599.31,8.493e-05,2]
[422689694,1779249044000,-937.41,8.493e-05,2]
[422689700,1779249044000,-500.0,8.493e-05,2]
[422689715,1779249044000,-3346.94,8.493e-05,2]
[422689701,1779249044000,-500.0,8.493e-05,2]
[422689702,1779249044000,-500.0,8.493e-05,2]
[422689705,1779249044000,-646.83,8.493e-05,2]
[422689716,1779249044000,-2031.08,8.493e-05,2]
[422689707,1779249044000,-500.0,8.493e-05,2]
[422689717,1779249044000,-500.0,8.493e-05,2]
[422689706,1779249044000,-500.0,8.493e-05,2]
[422689712,1779249044000,-500.0,8.493e-05,2]
[422689708,1779249044000,-500.0,8.493e-05,2]
[422689714,1779249044000,-615.97,8.493e-05,2]
[422689709,1779249044000,-500.68,8.493e-05,2]
[422689713,1779249044000,-500.0,8.493e-05,2]
[422689687,1779249044000,-500.0,8.493e-05,2]
[422689695,1779249044000,-1878.75,8.493e-05,2]
[422689688,1779249044000,-500.0,8.493e-05,2]
[422689665,1779249044000,-1710.6,8.493e-05,2]
[422689681,1779249044000,-500.0,8.493e-05,2]
[422689711,1779249044000,-500.0,8.493e-05,2]
[422689662,1779249044000,-509.76,8.493e-05,2]
[422689663,1779249044000,-747.5,8.493e-05,2]
[422689664,1779249044000,-513.77465641,8.493e-05,2]
[422689655,1779249044000,-500.0,8.493e-05,2]
[422689657,1779249044000,-500.0,8.493e-05,2]
[422689660,1779249044000,-213.1199981,8.493e-05,2]
[422689659,1779249044000,-584.54,8.493e-05,2]
[422689658,1779249044000,-1085.6,8.493e-05,2]
[422689661,1779249044000,-500.0,8.493e-05,2]
[422689667,1779249044000,-500.0,8.493e-05,2]
[422689666,1779249044000,-599.37,8.493e-05,2]
[422689672,1779249044000,-500.0,8.493e-05,2]
[422689679,1779249044000,-603.96,8.493e-05,2]
[422689676,1779249044000,-500.0,8.493e-05,2]
[422689671,1779249044000,-500.0,8.493e-05,2]
[422689670,1779249044000,-500.0,8.493e-05,2]
[422689669,1779249044000,-500.0,8.493e-05,2]
[422689668,1779249044000,-500.0,8.493e-05,2]
[422689673,1779249044000,-500.0,8.493e-05,2]
[422689678,1779249044000,-500.0,8.493e-05,2]
[422689677,1779249044000,-500.0,8.493e-05,2]
[422689675,1779249044000,-500.0,8.493e-05,2]
[422689680,1779249044000,-500.0,8.493e-05,2]
[422689685,1779249044000,-996.3853,8.493e-05,2]
[422689691,1779249044000,-1021.27,8.493e-05,2]
[422689690,1779249044000,-500.0,8.493e-05,2]
[422689682,1779249044000,-3345.65,8.493e-05,2]
[422689674,1779249044000,-761.07,8.493e-05,2]
[422689718,1779249044000,-522.75,8.493e-05,2]
[422689683,1779249044000,-654.02,8.493e-05,2]
[422689723,1779249044000,-438.9208202,8.493e-05,2]
[422689751,1779249044000,-500.0,8.493e-05,2]
[422689752,1779249044000,-500.0,8.493e-05,2]
[422689757,1779249044000,-500.0,8.493e-05,2]
[422689756,1779249044000,-500.0,8.493e-05,2]
[422689763,1779249044000,-500.0,8.493e-05,2]
[422689759,1779249044000,-500.0,8.493e-05,2]
[422689758,1779249044000,-500.0,8.493e-05,2]
[422689767,1779249044000,-500.0,8.493e-05,2]
[422689760,1779249044000,-1614.33,8.493e-05,2]
[422689764,1779249044000,-443.2396368,8.493e-05,2]
[422689765,1779249044000,-500.0,8.493e-05,2]
[422689762,1779249044000,-1260.78,8.493e-05,2]
[422689761,1779249044000,-500.0,8.493e-05,2]
[422689753,1779249044000,-500.0,8.493e-05,2]
[422689768,1779249044000,-500.0,8.493e-05,2]
[422689774,1779249044000,-500.0,8.493e-05,2]
[422689771,1779249044000,-500.0,8.493e-05,2]
[422689769,1779249044000,-502.06961785,8.493e-05,2]
[422689772,1779249044000,-500.0,8.493e-05,2]
[422689773,1779249044000,-500.0,8.493e-05,2]
[422689779,1779249044000,-927.77,8.493e-05,2]
[422689777,1779249044000,-453.46347439,8.493e-05,2]
[422689775,1779249044000,-958.85,8.493e-05,2]
[422689780,1779249044000,-500.0,8.493e-05,2]
[422689776,1779249044000,-500.0,8.493e-05,2]
[422689778,1779249044000,-7300.87,8.493e-05,2]
[422689781,1779249044000,-500.0,8.493e-05,2]
[422689720,1779249044000,-500.0,8.493e-05,2]
[422689770,1779249044000,-500.0,8.493e-05,2]
[422689750,1779249044000,-245.47437878,8.493e-05,2]
[422689766,1779249044000,-500.0,8.493e-05,2]
[422689755,1779249044000,-500.0,8.493e-05,2]
[422689749,1779249044000,-500.0,8.493e-05,2]
[422689722,1779249044000,-551.86,8.493e-05,2]
[422689729,1779249044000,-500.0,8.493e-05,2]
[422689719,1779249044000,-596.95,8.493e-05,2]
[422689728,1779249044000,-500.0,8.493e-05,2]
[422689726,1779249044000,-500.0,8.493e-05,2]
[422689725,1779249044000,-478.43000034,8.493e-05,2]
[422689727,1779249044000,-500.0,8.493e-05,2]
[422689724,1779249044000,-500.0,8.493e-05,2]
[422689740,1779249044000,-1053.65,8.493e-05,2]
[422689741,1779249044000,-500.0,8.493e-05,2]
[422689742,1779249044000,-500.0,8.493e-05,2]
[422689732,1779249044000,-500.0,8.493e-05,2]
[422689733,1779249044000,-792.03,8.493e-05,2]
[422689730,1779249044000,-500.0,8.493e-05,2]
[422689721,1779249044000,-546.69,8.493e-05,2]
[422689747,1779249044000,-500.0,8.493e-05,2]
[422689731,1779249044000,-500.0,8.493e-05,2]
[422689748,1779249044000,-481.95038109,8.493e-05,2]
[422689745,1779249044000,-500.0,8.493e-05,2]
[422689744,1779249044000,-500.0,8.493e-05,2]
[422689754,1779249044000,-500.0,8.493e-05,2]
[422689743,1779249044000,-505.57,8.493e-05,2]
[422689746,1779249044000,-573.45,8.493e-05,2]
[422689738,1779249044000,-524.35221812,8.493e-05,2]
[422689735,1779249044000,-500.0,8.493e-05,2]
[422689737,1779249044000,-1212.36,8.493e-05,2]
[422689736,1779249044000,-500.0,8.493e-05,2]
[422689739,1779249044000,-500.0,8.493e-05,2]
[422689734,1779249044000,-510.60050993,8.493e-05,2]
[422689821,1779249045000,-685.03,8.493e-05,2]
[422689819,1779249045000,-500.0,8.493e-05,2]
[422689831,1779249045000,-2001.85,8.493e-05,2]
[422689828,1779249045000,-1527.67,8.493e-05,2]
[422689826,1779249045000,-541.16,8.493e-05,2]
[422689811,1779249045000,-500.0,8.493e-05,2]
[422689829,1779249045000,-500.0,8.493e-05,2]
[422689816,1779249045000,-337.40454735,8.493e-05,2]
[422689813,1779249045000,-2787.97,8.493e-05,2]
[422689810,1779249045000,-500.0,8.493e-05,2]
[422689832,1779249045000,-500.0,8.493e-05,2]
[422689830,1779249045000,-500.0,8.493e-05,2]
[422689823,1779249045000,-500.0,8.493e-05,2]
[422689843,1779249045000,-500.0,8.493e-05,2]
[422689820,1779249045000,-729.57,8.493e-05,2]
[422689822,1779249045000,-500.0,8.493e-05,2]
[422689825,1779249045000,-500.0,8.493e-05,2]
[422689824,1779249045000,-2103.07,8.493e-05,2]
[422689834,1779249045000,-2195.67,8.493e-05,2]
[422689844,1779249045000,-5944.77,8.493e-05,2]
[422689833,1779249045000,-500.0,8.493e-05,2]
[422689845,1779249045000,-4544.81,8.493e-05,2]
[422689835,1779249045000,-500.0,8.493e-05,2]
[422689837,1779249045000,-1841.89,8.493e-05,2]
[422689840,1779249045000,-2357.37,8.493e-05,2]
[422689842,1779249045000,-500.0,8.493e-05,2]
[422689841,1779249045000,-500.0,8.493e-05,2]
[422689809,1779249045000,-500.0,8.493e-05,2]
[422689827,1779249045000,-2435.38,8.493e-05,2]
[422689814,1779249045000,-500.0,8.493e-05,2]
[422689782,1779249045000,-500.0,8.493e-05,2]
[422689815,1779249045000,-501.76281229,8.493e-05,2]
[422689836,1779249045000,-500.0,8.493e-05,2]
[422689793,1779249045000,-500.0,8.493e-05,2]
[422689792,1779249045000,-500.0,8.493e-05,2]
[422689786,1779249045000,-500.0,8.493e-05,2]
[422689791,1779249045000,-500.0,8.493e-05,2]
[422689789,1779249045000,-500.0,8.493e-05,2]
[422689788,1779249045000,-371.99137574,8.493e-05,2]
[422689784,1779249045000,-629.22,8.493e-05,2]
[422689785,1779249045000,-500.0,8.493e-05,2]
[422689783,1779249045000,-500.0,8.493e-05,2]
[422689790,1779249045000,-1474.95,8.493e-05,2]
[422689787,1779249045000,-1700.57,8.493e-05,2]
[422689798,1779249045000,-500.0,8.493e-05,2]
[422689812,1779249045000,-500.0,8.493e-05,2]
[422689799,1779249045000,-2463.23,8.493e-05,2]
[422689796,1779249045000,-500.0,8.493e-05,2]
[422689797,1779249045000,-543.83,8.493e-05,2]
[422689800,1779249045000,-500.0,8.493e-05,2]
[422689805,1779249045000,-3238.28,8.493e-05,2]
[422689795,1779249045000,-3361.27,8.493e-05,2]
[422689802,1779249045000,-500.0,8.493e-05,2]
[422689803,1779249045000,-500.0,8.493e-05,2]
[422689801,1779249045000,-500.0,8.493e-05,2]
[422689804,1779249045000,-500.0,8.493e-05,2]
[422689807,1779249045000,-2231.45,8.493e-05,2]
[422689818,1779249045000,-803.8,8.493e-05,2]
[422689817,1779249045000,-500.0,8.493e-05,2]
[422689806,1779249045000,-500.0,8.493e-05,2]
[422689794,1779249045000,-500.0,8.493e-05,2]
[422689839,1779249045000,-500.0,8.493e-05,2]
[422689808,1779249045000,-500.0,8.493e-05,2]
[422689846,1779249045000,-500.0,8.493e-05,2]
[422689884,1779249045000,-500.0,8.493e-05,2]
[422689882,1779249045000,-1720.1,8.493e-05,2]
[422689886,1779249045000,-1488.27,8.493e-05,2]
[422689879,1779249045000,-500.0,8.493e-05,2]
[422689883,1779249045000,-500.0,8.493e-05,2]
[422689885,1779249045000,-571.28,8.493e-05,2]
[422689881,1779249045000,-500.0,8.493e-05,2]
[422689888,1779249045000,-842.18,8.493e-05,2]
[422689895,1779249045000,-500.0,8.493e-05,2]
[422689890,1779249045000,-500.0,8.493e-05,2]
[422689891,1779249045000,-500.0,8.493e-05,2]
[422689892,1779249045000,-500.0,8.493e-05,2]
[422689894,1779249045000,-1867.28,8.493e-05,2]
[422689893,1779249045000,-2935.75,8.493e-05,2]
[422689889,1779249045000,-5393.86,8.493e-05,2]
[422689887,1779249045000,-500.0,8.493e-05,2]
[422689898,1779249045000,-2222.54,8.493e-05,2]
[422689897,1779249045000,-1365.26,8.493e-05,2]
[422689905,1779249045000,-500.0,8.493e-05,2]
[422689900,1779249045000,-500.0,8.493e-05,2]
[422689907,1779249045000,-500.0,8.493e-05,2]
[422689904,1779249045000,-192.5173552,8.493e-05,2]
[422689901,1779249045000,-500.0,8.493e-05,2]
[422689899,1779249045000,-500.0,8.493e-05,2]
[422689906,1779249045000,-500.0,8.493e-05,2]
[422689903,1779249045000,-2168.92,8.493e-05,2]
[422689902,1779249045000,-500.0,8.493e-05,2]
[422689908,1779249045000,-500.0,8.493e-05,2]
[422689838,1779249045000,-500.0,8.493e-05,2]
[422689880,1779249045000,-500.0,8.493e-05,2]
[422689874,1779249045000,-500.0,8.493e-05,2]
[422689896,1779249045000,-500.0,8.493e-05,2]
[422689875,1779249045000,-500.0,8.493e-05,2]
[422689877,1779249045000,-500.0,8.493e-05,2]
[422689847,1779249045000,-810.54,8.493e-05,2]
[422689851,1779249045000,-500.73313173,8.493e-05,2]
[422689858,1779249045000,-1645.56,8.493e-05,2]
[422689855,1779249045000,-500.0,8.493e-05,2]
[422689859,1779249045000,-500.0,8.493e-05,2]
[422689857,1779249045000,-6662.64,8.493e-05,2]
[422689854,1779249045000,-33279.63,8.493e-05,2]
[422689856,1779249045000,-500.0,8.493e-05,2]
[422689850,1779249045000,-500.0,8.493e-05,2]
[422689852,1779249045000,-4625.68,8.493e-05,2]
[422689853,1779249045000,-1091.4,8.493e-05,2]
[422689861,1779249045000,-500.0,8.493e-05,2]
[422689864,1779249045000,-500.0,8.493e-05,2]
[422689849,1779249045000,-500.0,8.493e-05,2]
[422689869,1779249045000,-1969.88,8.493e-05,2]
[422689878,1779249045000,-500.0,8.493e-05,2]
[422689868,1779249045000,-214.37427285,8.493e-05,2]
[422689873,1779249045000,-500.0,8.493e-05,2]
[422689870,1779249045000,-500.0,8.493e-05,2]
[422689867,1779249045000,-2807.6,8.493e-05,2]
[422689865,1779249045000,-508.96,8.493e-05,2]
[422689866,1779249045000,-500.0,8.493e-05,2]
[422689876,1779249045000,-689.22,8.493e-05,2]
[422689871,1779249045000,-423.52327566,8.493e-05,2]
[422689862,1779249045000,-500.0,8.493e-05,2]
[422689860,1779249045000,-500.0,8.493e-05,2]
[422689872,1779249045000,-500.0,8.493e-05,2]
[422689848,1779249045000,-500.0,8.493e-05,2]
[422689863,1779249045000,-1292.85,8.493e-05,2]
[422689950,1779249046000,-500.0,8.767e-05,2]
[422689951,1779249046000,-500.0,8.767e-05,2]
[422689948,1779249046000,-665.2,8.767e-05,2]
[422689959,1779249046000,-500.0,8.767e-05,2]
[422689961,1779249046000,-560.6,8.767e-05,2]
[422689941,1779249046000,-500.0,8.767e-05,2]
[422689949,1779249046000,-500.0,8.767e-05,2]
[422689940,1779249046000,-500.0,8.767e-05,2]
[422689943,1779249046000,-514.15,8.767e-05,2]
[422689944,1779249046000,-500.0,8.767e-05,2]
[422689952,1779249046000,-500.0,8.767e-05,2]
[422689960,1779249046000,-500.0,8.767e-05,2]
[422689953,1779249046000,-500.0,8.767e-05,2]
[422689966,1779249046000,-1325.96,8.767e-05,2]
[422689958,1779249046000,-500.0,8.767e-05,2]
[422689955,1779249046000,-500.0,8.767e-05,2]
[422689956,1779249046000,-500.0,8.767e-05,2]
[422689957,1779249046000,-593.29,8.767e-05,2]
[422689962,1779249046000,-1000.0,8.767e-05,2]
[422689963,1779249046000,-500.0,8.767e-05,2]
[422689973,1779249046000,-1298.84,8.767e-05,2]
[422689964,1779249046000,-500.0,8.767e-05,2]
[422689967,1779249046000,-500.0,8.767e-05,2]
[422689974,1779249046000,-501.06569027,8.767e-05,2]
[422689976,1779249046000,-500.0,8.767e-05,2]
[422689975,1779249046000,-500.0,8.767e-05,2]
[422689965,1779249046000,-798.9,8.767e-05,2]
[422689942,1779249046000,-500.0,8.767e-05,2]
[422689954,1779249046000,-500.0,8.767e-05,2]
[422689945,1779249046000,-516.2,8.767e-05,2]
[422689922,1779249046000,-500.0,8.493e-05,2]
[422689939,1779249046000,-500.0,8.767e-05,2]
[422689968,1779249046000,-500.0,8.767e-05,2]
[422689911,1779249046000,-713.95,8.493e-05,2]
[422689921,1779249046000,-587.54,8.493e-05,2]
[422689912,1779249046000,-500.0,8.493e-05,2]
[422689910,1779249046000,-3211.7,8.493e-05,2]
[422689914,1779249046000,-500.0,8.493e-05,2]
[422689918,1779249046000,-500.0,8.493e-05,2]
[422689919,1779249046000,-500.0,8.493e-05,2]
[422689913,1779249046000,-500.0,8.493e-05,2]
[422689917,1779249046000,-500.0,8.493e-05,2]
[422689920,1779249046000,-500.0,8.493e-05,2]
[422689915,1779249046000,-500.0,8.493e-05,2]
[422689916,1779249046000,-1033.44,8.493e-05,2]
[422689924,1779249046000,-500.0,8.493e-05,2]